fUST/lending_fUST_20250707
["ID","MTS","AMOUNT","RATE_DAILY","PERIOD"]
[370107002,1751886651385,-251.74879828,0.00022749,2]
[370107003,1751886651395,-434.82246799,0.00022802,2]
[370107004,1751886651405,-167.920415,0.00022892,2]
[370107005,1751886651415,-225.48264013,0.000229,8]
[370107006,1751886651425,-1409.43,0.00022907,2]
[370107007,1751886651434,-460.0,0.00022919,2]
[370107008,1751886651443,-460.0,0.00022919,2]
[370107009,1751886651452,-161.86,0.00022919,2]
[370107010,1751886651461,-603.12,0.00022948,2]
[370107011,1751886651470,-1631.33,0.00023,7]
[370107012,1751886651480,-160.0,0.00023,2]
[370107013,1751886651489,-330.67695274,0.00023,2]
[370107014,1751886651498,-170.0,0.00023014,7]
[370107015,1751886651508,-460.0,0.00023021,2]
[370107016,1751886651517,-167.920415,0.00023076,2]
[370107017,1751886651526,-677.050906,0.00023146,2]
[370107018,1751886651536,-1050.15772205,0.00023146,2]
[370107019,1751886651544,-1500.0,0.00023146,2]
[370107020,1751886651554,-1500.0,0.00023146,2]
[370107021,1751886651563,-1800.0,0.00023146,2]
[370107022,1751886651572,-1409.43,0.00023181,2]
[370107023,1751886651582,-435.46905817,0.00023193,2]
[370107024,1751886651591,-460.0,0.00023193,2]
[370107025,1751886651600,-151.0,0.00023238,7]
[370107026,1751886651609,-189.263538,0.00023238,7]
[370107027,1751886651618,-189.263538,0.00023238,7]
[370107028,1751886651627,-460.0,0.00023295,2]
[370107029,1751886651636,-151.0,0.00023298,7]
[370107030,1751886651645,-151.0,0.00023298,7]
[370107031,1751886651654,-151.0,0.00023298,7]
[370107032,1751886651664,-215.0738,0.00023369,2]
[370107033,1751886651672,-1142.61646569,0.0002344,2]
[370107034,1751886651682,-1409.43,0.00023455,2]
[370107035,1751886651692,-320.46375407,0.00023467,2]
[370107036,1751886651700,-273.593835,0.00023556,7]
[370107037,1751886651709,-273.593835,0.00023556,7]
[370107038,1751886651718,-286.0,0.00023564,2]
[370107039,1751886651728,-460.0,0.00023569,2]
[370107040,1751886651737,-1004.76527195,0.00023694,2]
[370107041,1751886651746,-600.0,0.00023694,2]
[370107042,1751886651755,-40158.12,0.000237,7]
[370107043,1751886651764,-2289.95,0.000237,7]
[370107044,1751886651773,-151.0,0.000237,7]
[370107045,1751886651782,-151.0,0.000237,7]
[370107046,1751886651791,-151.0,0.000237,7]
[370107047,1751886651801,-151.0,0.000237,7]
[370107048,1751886651810,-151.0,0.000237,7]
[370107049,1751886651819,-151.0,0.000237,7]
[370107050,1751886651828,-151.0,0.000237,7]
[370107051,1751886651838,-151.0,0.000237,7]
[370107052,1751886651847,-151.0,0.000237,7]
[370107053,1751886651857,-223.597279,0.000237,7]
[370107054,1751886651866,-223.597279,0.000237,7]
[370107055,1751886651875,-548.841758,0.000237,2]
[370107056,1751886651884,-548.841758,0.000237,2]
[370107057,1751886651893,-151.0,0.000237,7]
[370107058,1751886651903,-151.0,0.000237,7]
[370107059,1751886651912,-259.230168,0.000237,7]
[370107060,1751886651921,-259.230168,0.000237,7]
[370107061,1751886651930,-1214.46228262,0.00023729,2]
[370107062,1751886652115,-701.019595,0.00019247,2]
[370107092,1751887559516,-448.07258873,0.00018951,2]
[370107119,1751887612076,-153.33393853,0.000189,2]
[370107122,1751887728489,150.999999,0.00025153,120]
[370107172,1751887831869,-1345.07911911,0.00018711,6]
[370107173,1751887831878,-1952.61425611,0.000189,2]
[370107174,1751887831888,-1184.43829464,0.00019,2]
[370107175,1751887831897,-316.34,0.00019131,3]
[370107176,1751887831906,-401.04,0.00019131,3]
[370107177,1751887831915,-200.52,0.00019131,3]
[370107178,1751887831924,-601.56,0.00019131,3]
[370107179,1751887831933,-162.0,0.0001914,2]
[370107180,1751887831942,-300.0,0.0001914,2]
[370107181,1751887831951,-416.0,0.0001914,2]
[370107183,1751887831960,-500.0,0.00019141,2]
[370107185,1751887831970,-500.0,0.00019141,2]
[370107187,1751887831979,-500.0,0.00019141,2]
[370107189,1751887831988,-500.0,0.00019141,2]
[370107190,1751887831997,-1438.26311717,0.00019141,2]
[370107191,1751887832006,-500.0,0.00019141,2]
[370107194,1751887832016,-500.0,0.00019141,2]
[370107196,1751887832026,-1438.26311717,0.00019141,2]
[370107199,1751887832035,-500.0,0.00019141,2]
[370107201,1751887832045,-501.67235945,0.00019141,2]
[370107203,1751887832054,-500.0,0.00019141,2]
[370107205,1751887832063,-218.77591477,0.00019141,2]
[370107207,1751887832073,-500.0,0.00019141,2]
[370107209,1751887832082,-500.0,0.00019141,2]
[370107211,1751887832092,-1438.26311717,0.00019141,2]
[370107213,1751887832101,-620.5890225,0.00019141,2]
[370107215,1751887832110,-1438.26311717,0.00019141,2]
[370107217,1751887832120,-169.81664461,0.00019141,2]
[370107218,1751887832129,-598.71678002,0.00019141,2]
[370107219,1751887832138,-500.0,0.00019141,2]
[370107220,1751887832147,-500.0,0.00019141,2]
[370107221,1751887832156,-1438.26311717,0.00019141,2]
[370107222,1751887832166,-500.0,0.00019141,2]
[370107223,1751887832176,-500.0,0.00019141,2]
[370107224,1751887832187,-1438.26311717,0.00019141,2]
[370107225,1751887832196,-1438.26311717,0.00019141,2]
[370107226,1751887832206,-525.24369198,0.00019141,2]
[370107227,1751887832215,-1438.26311717,0.00019141,2]
[370107228,1751887832224,-1438.26311717,0.00019141,2]
[370107229,1751887832234,-1438.26311717,0.00019141,2]
[370107230,1751887832243,-1438.26311717,0.00019141,2]
[370107231,1751887832252,-1438.26311717,0.00019141,2]
[370107232,1751887832262,-1438.26311717,0.00019141,2]
[370107233,1751887832272,-1438.26311717,0.00019141,2]
[370107234,1751887832281,-1438.26311717,0.00019141,2]
[370107235,1751887832290,-1438.26311717,0.00019141,2]
[370107236,1751887832300,-1438.26311717,0.00019141,2]
[370107237,1751887832310,-1438.26311717,0.00019141,2]
[370107238,1751887832320,-1438.26311717,0.00019141,2]
[370107239,1751887832330,-1438.26311717,0.00019141,2]
[370107240,1751887832339,-1438.26311717,0.00019141,2]
[370107241,1751887832349,-1438.26311717,0.00019141,2]
[370107242,1751887832358,-1438.26311717,0.00019141,2]
[370107243,1751887832368,-1438.26311717,0.00019141,2]
[370107244,1751887832377,-1438.26311717,0.00019141,2]
[370107245,1751887832387,-1438.26311717,0.00019141,2]
[370107246,1751887832396,-1438.26311717,0.00019141,2]
[370107247,1751887832405,-1438.26311717,0.00019141,2]
[370107248,1751887832415,-1438.26311717,0.00019141,2]
[370107249,1751887832423,-1438.26311717,0.00019141,2]
[370107250,1751887832432,-1438.26311717,0.00019141,2]
[370107251,1751887832440,-1438.26311717,0.00019141,2]
[370107252,1751887832449,-1438.26311717,0.00019141,2]
[370107253,1751887832458,-1438.26311717,0.00019141,2]
[370107254,1751887832467,-1438.26311717,0.00019141,2]
[370107255,1751887832477,-1438.26311717,0.00019141,2]
[370107256,1751887832486,-1438.26311717,0.00019141,2]
[370107257,1751887832495,-1438.26311717,0.00019141,2]
[370107258,1751887832505,-1438.26311717,0.00019141,2]
[370107259,1751887832515,-1438.26311717,0.00019141,2]
[370107260,1751887832525,-1438.26311717,0.00019141,2]
[370107261,1751887832535,-1438.26311717,0.00019141,2]
[370107262,1751887832545,-1438.26311717,0.00019141,2]
[370107263,1751887832554,-1438.26311717,0.00019141,2]
[370107264,1751887832564,-1438.26311717,0.00019141,2]
[370107265,1751887832573,-1438.26311717,0.00019141,2]
[370107266,1751887832583,-1413.24342109,0.00019141,2]
[370107288,1751887838059,-25.01969608,0.00019141,2]
[370107289,1751887838069,-1438.26311717,0.00019141,2]
[370107290,1751887838079,-1438.26311717,0.00019141,2]
[370107291,1751887838089,-1438.26311717,0.00019141,2]
[370107292,1751887838098,-1438.26311717,0.00019141,2]
[370107293,1751887838107,-1438.26311717,0.00019141,2]
[370107294,1751887838116,-1438.26311717,0.00019141,2]
[370107295,1751887838125,-1438.26311717,0.00019141,2]
[370107296,1751887838135,-1438.26311717,0.00019141,2]
[370107297,1751887838145,-1438.26311717,0.00019141,2]
[370107298,1751887838154,-3626.82684387,0.00019141,2]
[370107299,1751887838163,-3626.82684387,0.00019141,2]
[370107300,1751887838172,-2624.81458381,0.00019141,2]
[370107301,1751887838198,-1002.01226006,0.00019141,2]
[370107302,1751887838208,-3626.82684387,0.00019141,2]
[370107303,1751887838217,-3626.82684387,0.00019141,2]
[370107304,1751887838227,-3626.82684387,0.00019141,2]
[370107305,1751887838236,-3626.82684387,0.00019141,2]
[370107306,1751887838245,-3626.82684387,0.00019141,2]
[370107307,1751887838254,-3626.82684387,0.00019141,2]
[370107308,1751887838265,-3626.82684387,0.00019141,2]
[370107309,1751887838274,-3626.82684387,0.00019141,2]
[370107310,1751887838284,-3626.82684387,0.00019141,2]
[370107311,1751887838294,-3626.82684387,0.00019141,2]
[370107312,1751887838303,-3626.82684387,0.00019141,2]
[370107313,1751887838312,-3626.82684387,0.00019141,2]
[370107314,1751887838321,-3626.82684387,0.00019141,2]
[370107315,1751887838330,-3626.82684387,0.00019141,2]
[370107316,1751887838339,-3626.82684387,0.00019141,2]
[370107317,1751887838349,-3626.82684387,0.00019141,2]
[370107318,1751887838358,-3626.82684387,0.00019141,2]
[370107319,1751887838367,-3626.82684387,0.00019141,2]
[370107320,1751887838376,-3626.82684387,0.00019141,2]
[370107321,1751887838386,-3626.82684387,0.00019141,2]
[370107322,1751887838395,-3626.82684387,0.00019141,2]
[370107323,1751887838405,-3626.82684387,0.00019141,2]
[370107324,1751887838414,-3626.82684387,0.00019141,2]
[370107325,1751887838423,-3626.82684387,0.00019141,2]
[370107326,1751887838432,-3626.82684387,0.00019141,2]
[370107327,1751887838442,-3626.82684387,0.00019141,2]
[370107328,1751887838451,-3626.82684387,0.00019141,2]
[370107329,1751887838461,-3626.82684387,0.00019141,2]
[370107330,1751887838470,-3626.82684391,0.00019141,2]
[370107331,1751887838479,-42697.03058209,0.00019141,2]
[370107332,1751887838488,-500.0,0.00019144,2]
[370107333,1751887838497,-40845.28000266,0.00019146,2]
[370107334,1751887838507,-1233.25,0.00019178,2]
[370107335,1751887838517,-460.0,0.00019178,2]
[370107336,1751887838527,-472.21646281,0.00019178,2]
[370107337,1751887838536,-460.0,0.00019178,2]
[370107338,1751887838546,-360.68,0.00019178,2]
[370107339,1751887838556,-460.0,0.00019178,2]
[370107340,1751887838567,-460.0,0.00019178,2]
[370107341,1751887838576,-460.0,0.00019178,2]
[370107342,1751887838586,-460.0,0.00019178,2]
[370107343,1751887838595,-460.0,0.00019178,2]
[370107344,1751887838605,-460.0,0.00019178,2]
[370107345,1751887838614,-199.25997317,0.00019178,2]
[370107346,1751887838624,-563.57875554,0.00019178,2]
[370107347,1751887838633,-460.0,0.00019178,2]
[370107348,1751887838642,-411.26658203,0.00019178,2]
[370107349,1751887838652,-460.0,0.00019178,2]
[370107350,1751887838662,-531.73,0.00019178,2]
[370107351,1751887838671,-460.0,0.00019178,2]
[370107352,1751887838680,-460.0,0.00019178,2]
[370107353,1751887838690,-460.0,0.00019178,2]
[370107354,1751887838699,-305.22,0.00019178,2]
[370107355,1751887838709,-460.0,0.00019178,2]
[370107356,1751887838719,-460.0,0.00019178,2]
[370107357,1751887838728,-460.0,0.00019178,2]
[370107358,1751887838738,-306.017003,0.00019178,2]
[370107359,1751887838747,-666.0,0.00019178,2]
[370107360,1751887838757,-191.88799906,0.000192,2]
[370107361,1751887838767,-306.0,0.000192,2]
[370107362,1751887838777,-460.0,0.00019241,2]
[370107363,1751887838787,-231.7842568,0.00019241,2]
[370107364,1751887838796,-460.0,0.00019241,2]
[370107365,1751887838806,-443.8,0.00019241,2]
[370107366,1751887838814,-460.0,0.00019241,2]
[370107367,1751887838824,-588.41,0.00019241,2]
[370107368,1751887838834,-211.42,0.00019241,2]
[370107369,1751887838843,-460.0,0.00019241,2]
[370107370,1751887838853,-178.21062223,0.00019243,2]
[370107371,1751887838862,-460.0,0.00019243,2]
[370107372,1751887838871,-460.0,0.00019243,2]
[370107373,1751887838881,-460.0,0.00019243,2]
[370107374,1751887838890,-460.0,0.00019243,2]
[370107375,1751887838900,-460.0,0.00019243,2]
[370107376,1751887838909,-460.0,0.00019243,2]
[370107377,1751887838918,-460.0,0.00019243,2]
[370107378,1751887838928,-460.0,0.00019243,2]
[370107379,1751887838937,-460.0,0.00019243,2]
[370107380,1751887838947,-460.0,0.00019243,2]
[370107381,1751887838956,-460.0,0.00019243,2]
[370107382,1751887838966,-460.0,0.00019243,2]
[370107383,1751887838975,-460.0,0.00019243,2]
[370107384,1751887838985,-460.0,0.00019243,2]
[370107385,1751887838994,-460.0,0.00019243,2]
[370107386,1751887839003,-460.0,0.00019243,2]
[370107387,1751887839013,-460.0,0.00019243,2]
[370107388,1751887839023,-460.0,0.00019243,2]
[370107389,1751887839032,-460.0,0.00019243,2]
[370107390,1751887839041,-460.0,0.00019243,2]
[370107391,1751887839051,-240.12297563,0.00019243,2]
[370107392,1751887839060,-460.0,0.00019243,2]
[370107393,1751887839069,-460.0,0.00019243,2]
[370107394,1751887839078,-167.66,0.00019243,2]
[370107395,1751887839087,-460.0,0.00019243,2]
[370107396,1751887839097,-460.0,0.00019243,2]
[370107397,1751887839106,-460.0,0.00019243,2]
[370107398,1751887839115,-460.0,0.00019243,2]
[370107399,1751887839125,-460.0,0.00019243,2]
[370107400,1751887839134,-460.0,0.00019243,2]
[370107401,1751887839143,-460.0,0.00019243,2]
[370107402,1751887839153,-460.0,0.00019243,2]
[370107403,1751887839162,-460.0,0.00019243,2]
[370107404,1751887839171,-460.0,0.00019243,2]
[370107405,1751887839181,-460.0,0.00019243,2]
[370107406,1751887839190,-460.0,0.00019243,2]
[370107407,1751887839199,-460.0,0.00019243,2]
[370107408,1751887839208,-460.0,0.00019243,2]
[370107409,1751887839218,-460.0,0.00019243,2]
[370107411,1751887839227,-460.0,0.00019243,2]
[370107412,1751887839240,-460.0,0.00019243,2]
[370107413,1751887839391,-460.0,0.00019243,2]
[370107414,1751887839401,-460.0,0.00019243,2]
[370107415,1751887839411,-460.0,0.00019243,2]
[370107416,1751887839421,-460.0,0.00019243,2]
[370107417,1751887839430,-460.0,0.00019243,2]
[370107418,1751887839440,-460.0,0.00019243,2]
[370107419,1751887839449,-460.0,0.00019243,2]
[370107420,1751887839459,-460.0,0.00019243,2]
[370107421,1751887839470,-38628.86793688,0.00019244,2]
[370107422,1751887839479,-185.39691238,0.00019246,2]
[370107423,1751887839489,-460.0,0.00019246,2]
[370107424,1751887839498,-461.70098413,0.00019246,2]
[370107426,1751887839507,-460.0,0.00019246,2]
[370107427,1751887839517,-460.72385342,0.00019246,2]
[370107428,1751887839526,-466.34271078,0.00019246,2]
[370107429,1751887839537,-460.0,0.00019246,2]
[370107430,1751887839547,-460.0,0.00019246,2]
[370107431,1751887839556,-460.0,0.00019246,2]
[370107432,1751887839566,-460.0,0.00019246,2]
[370107433,1751887839576,-155.47,0.00019246,2]
[370107434,1751887839586,-207.26264354,0.00019246,2]
[370107435,1751887839595,-460.0,0.00019345,2]
[370107436,1751887839605,-502.29,0.00019345,2]
[370107438,1751887839614,-460.0,0.00019345,2]
[370107440,1751887839623,-460.0,0.00019345,2]
[370107442,1751887839632,-460.0,0.00019345,2]
[370107444,1751887839642,-460.0,0.00019345,2]
[370107446,1751887839651,-460.0,0.00019345,2]
[370107448,1751887839661,-460.0,0.00019345,2]
[370107450,1751887839671,-460.0,0.00019345,2]
[370107452,1751887839680,-460.0,0.00019345,2]
[370107454,1751887839689,-460.0,0.00019345,2]
[370107455,1751887839699,-460.0,0.00019345,2]
[370107458,1751887839709,-460.0,0.00019345,2]
[370107460,1751887839719,-460.0,0.00019345,2]
[370107461,1751887839727,-460.0,0.00019345,2]
[370107463,1751887839737,-460.0,0.00019345,2]
[370107465,1751887839747,-460.0,0.00019345,2]
[370107467,1751887839756,-1233.25,0.00019452,2]
[370107469,1751887839766,-460.0,0.00019452,2]
[370107471,1751887839776,-460.0,0.00019452,2]
[370107473,1751887839785,-460.0,0.00019452,2]
[370107475,1751887839794,-460.0,0.00019452,2]
[370107477,1751887839804,-460.0,0.00019452,2]
[370107479,1751887839813,-460.0,0.00019452,2]
[370107481,1751887839822,-460.0,0.00019452,2]
[370107483,1751887839831,-460.0,0.00019452,2]
[370107485,1751887839841,-460.0,0.00019459,2]
[370107487,1751887839850,-433.94300753,0.00019459,2]
[370107489,1751887839859,-460.0,0.00019459,2]
[370107491,1751887839869,-460.0,0.00019515,2]
[370107493,1751887839878,-205.45,0.00019515,2]
[370107495,1751887839888,-460.0,0.00019515,2]
[370107497,1751887839897,-460.0,0.00019515,2]
[370107500,1751887839907,-460.0,0.00019517,2]
[370107502,1751887839916,-460.0,0.00019517,2]
[370107504,1751887839926,-526.25743062,0.00019517,2]
[370107505,1751887839935,-460.0,0.00019517,2]
[370107508,1751887839945,-460.0,0.00019517,2]
[370107510,1751887839954,-460.0,0.00019517,2]
[370107513,1751887839964,-460.0,0.00019517,2]
[370107516,1751887839973,-406.90028393,0.00019517,2]
[370107519,1751887839982,-600.14002683,0.00019517,2]
[370107522,1751887839991,-460.0,0.00019517,2]
[370107524,1751887840001,-460.0,0.00019517,2]
[370107526,1751887840010,-460.0,0.00019517,2]
[370107529,1751887840020,-481.78,0.00019517,2]
[370107531,1751887840029,-460.0,0.00019517,2]
[370107533,1751887840039,-460.0,0.00019517,2]
[370107535,1751887840048,-460.0,0.00019517,2]
[370107536,1751887840058,-460.0,0.00019517,2]
[370107537,1751887840067,-460.0,0.00019517,2]
[370107538,1751887840076,-460.0,0.00019517,2]
[370107540,1751887840086,-460.0,0.00019517,2]
[370107541,1751887840095,-460.0,0.0001952,2]
[370107544,1751887840104,-460.0,0.0001952,2]
[370107545,1751887840114,-151.0,0.00019563,2]
[370107547,1751887840123,-151.0,0.00019563,2]
[370107548,1751887840133,-460.0,0.00019619,2]
[370107549,1751887840142,-460.0,0.00019619,2]
[370107550,1751887840152,-460.0,0.00019619,2]
[370107551,1751887840161,-1233.25,0.00019726,2]
[370107552,1751887840170,-206.68,0.00019726,2]
[370107553,1751887840180,-460.0,0.00019726,2]
[370107554,1751887840189,-460.0,0.00019726,2]
[370107556,1751887840198,-460.0,0.00019726,2]
[370107557,1751887840208,-460.0,0.00019726,2]
[370107558,1751887840217,-460.0,0.00019726,2]
[370107559,1751887840228,-460.0,0.00019733,2]
[370107560,1751887840241,-500.0,0.00019757,2]
[370107561,1751887840250,-500.0,0.00019757,2]
[370107562,1751887840259,-151.0,0.00019788,2]
[370107563,1751887840269,-151.0,0.00019788,2]
[370107564,1751887840280,-460.0,0.00019789,2]
[370107565,1751887840290,-460.0,0.00019789,2]
[370107566,1751887840300,-460.0,0.00019791,2]
[370107567,1751887840310,-460.0,0.00019791,2]
[370107568,1751887840319,-460.0,0.00019791,2]
[370107569,1751887840328,-460.0,0.00019791,2]
[370107570,1751887840338,-460.0,0.00019791,2]
[370107571,1751887840347,-460.0,0.00019791,2]
[370107572,1751887840357,-347.52215432,0.00019791,2]
[370107573,1751887840366,-460.0,0.00019791,2]
[370107574,1751887840375,-460.0,0.00019791,2]
[370107575,1751887840385,-460.0,0.00019794,2]
[370107576,1751887840396,-460.0,0.00019794,2]
[370107577,1751887840406,-1233.25,0.0002,2]
[370107578,1751887840415,-460.0,0.0002,2]
[370107579,1751887840424,-460.0,0.0002,2]
[370107580,1751887840434,-460.0,0.0002,2]
[370107581,1751887840443,-460.0,0.0002,2]
[370107582,1751887840452,-166.53,0.0002,2]
[370107583,1751887840462,-300.0,0.00020043,2]
[370107584,1751887840472,-460.0,0.00020063,2]
[370107585,1751887840481,-460.0,0.00020063,2]
[370107586,1751887840490,-460.0,0.00020065,2]
[370107587,1751887840500,-460.0,0.00020065,2]
[370107588,1751887840510,-460.0,0.00020065,2]
[370107589,1751887840520,-460.0,0.00020065,2]
[370107590,1751887840529,-460.0,0.00020065,2]
[370107591,1751887840539,-460.0,0.00020065,2]
[370107592,1751887840548,-460.0,0.00020065,2]
[370107593,1751887840557,-460.0,0.00020068,2]
[370107594,1751887840567,-460.0,0.00020068,2]
[370107595,1751887840577,-215.21338352,0.00020086,2]
[370107596,1751887840586,-160.0,0.00020086,2]
[370107597,1751887840595,-848.27993403,0.00020086,2]
[370107598,1751887840605,-160.0,0.00020086,2]
[370107599,1751887840615,-160.0,0.00020086,2]
[370107600,1751887840624,-160.0,0.00020086,2]
[370107601,1751887840634,-837.79946008,0.00020086,2]
[370107602,1751887840643,-160.0,0.00020086,2]
[370107603,1751887840654,-214.06929976,0.00020086,2]
[370107604,1751887840663,-230.48668418,0.00020086,2]
[370107605,1751887840673,-160.0,0.00020086,2]
[370107606,1751887840682,-160.0,0.00020086,2]
[370107607,1751887840692,-160.0,0.00020086,2]
[370107608,1751887840701,-12584.46609586,0.00020086,2]
[370107609,1751887840715,-434.82246799,0.00020252,2]
[370107610,1751887840724,-1233.25,0.00020273,2]
[370107611,1751887840734,-460.0,0.00020273,2]
[370107612,1751887840743,-460.0,0.00020273,2]
[370107613,1751887840752,-460.0,0.00020273,2]
[370107614,1751887840762,-460.0,0.00020337,2]
[370107615,1751887840771,-578.48,0.00020337,2]
[370107616,1751887840780,-460.0,0.00020339,2]
[370107617,1751887840789,-460.0,0.00020339,2]
[370107618,1751887840798,-460.0,0.00020339,2]
[370107619,1751887840808,-432.87,0.00020339,2]
[370107620,1751887840817,-460.0,0.00020339,2]
[370107621,1751887840827,-460.0,0.00020339,2]
[370107622,1751887840836,-243.31,0.00020339,2]
[370107623,1751887840845,-460.0,0.00020342,2]
[370107624,1751887840854,-460.0,0.00020342,2]
[370107625,1751887840863,-802.08,0.00020501,3]
[370107626,1751887840872,-401.04,0.00020501,3]
[370107627,1751887840882,-1233.25,0.00020547,2]
[370107628,1751887840891,-460.0,0.00020547,2]
[370107629,1751887840900,-460.0,0.00020547,2]
[370107630,1751887840909,-484.70083974,0.00020547,2]
[370107631,1751887840919,-1812.59,0.000206,2]
[370107632,1751887840930,-460.0,0.00020611,2]
[370107633,1751887840939,-460.0,0.00020613,2]
[370107634,1751887840948,-334.57251241,0.00020613,2]
[370107635,1751887840957,-460.0,0.00020613,2]
[370107636,1751887840966,-460.0,0.00020613,2]
[370107637,1751887840975,-297.57,0.00020613,2]
[370107638,1751887840984,-460.0,0.00020616,2]
[370107639,1751887840993,-460.0,0.00020616,2]
[370107640,1751887841002,-347.089,0.00020625,2]
[370107641,1751887841011,-1233.25,0.00020821,2]
[370107642,1751887841020,-460.0,0.00020821,2]
[370107643,1751887841029,-460.0,0.00020821,2]
[370107644,1751887841038,-460.0,0.00020885,2]
[370107645,1751887841048,-460.0,0.00020887,2]
[370107646,1751887841057,-460.0,0.00020887,2]
[370107647,1751887841067,-460.0,0.00020887,2]
[370107648,1751887841076,-460.0,0.0002089,2]
[370107649,1751887841085,-460.0,0.0002089,2]
[370107650,1751887841095,-203.44881752,0.000209,4]
[370107651,1751887841104,-179.511555,0.00020981,2]
[370107652,1751887841113,-179.511555,0.00021077,2]
[370107653,1751887841122,-1233.25,0.00021095,2]
[370107654,1751887841132,-460.0,0.00021095,2]
[370107655,1751887841141,-460.0,0.00021095,2]
[370107656,1751887841150,-460.0,0.00021159,2]
[370107657,1751887841160,-460.0,0.00021161,2]
[370107658,1751887841169,-460.0,0.00021161,2]
[370107659,1751887841179,-460.0,0.00021161,2]
[370107660,1751887841187,-460.0,0.00021164,2]
[370107661,1751887841196,-460.0,0.00021164,2]
[370107662,1751887841206,-179.511555,0.00021173,2]
[370107663,1751887841215,-203.44881739,0.00021233,4]
[370107664,1751887841224,-179.511555,0.00021269,2]
[370107665,1751887841236,-179.511555,0.00021365,2]
[370107666,1751887841245,-1233.25,0.00021369,2]
[370107667,1751887841254,-460.0,0.00021369,2]
[370107668,1751887841263,-460.0,0.00021369,2]
[370107669,1751887841274,-409.83,0.00021433,2]
[370107670,1751887841283,-460.0,0.00021435,2]
[370107671,1751887841292,-460.0,0.00021435,2]
[370107672,1751887841301,-460.0,0.00021435,2]
[370107673,1751887841311,-460.0,0.00021438,2]
[370107674,1751887841320,-460.0,0.00021438,2]
[370107675,1751887841329,-179.511555,0.00021461,2]
[370107676,1751887841338,-179.511555,0.00021557,2]
[370107677,1751887841348,-203.44881739,0.00021567,5]
[370107678,1751887841357,-1233.25,0.00021643,2]
[370107679,1751887841367,-460.0,0.00021643,2]
[370107680,1751887841376,-460.0,0.00021643,2]
[370107681,1751887841385,-179.511555,0.00021653,2]
[370107682,1751887841395,-549.20648262,0.00021667,2]
[370107683,1751887841404,-460.0,0.00021709,2]
[370107684,1751887841414,-460.0,0.00021709,2]
[370107685,1751887841423,-180.2,0.00021709,2]
[370107686,1751887841432,-460.0,0.00021712,2]
[370107687,1751887841442,-572.50471894,0.00021712,2]
[370107688,1751887841451,-179.511555,0.00021749,2]
[370107689,1751887841462,-914.09317256,0.00021818,2]
[370107690,1751887841471,-179.511555,0.00021845,2]
[370107691,1751887841480,-203.44881739,0.000219,6]
[370107692,1751887841490,-1233.25,0.00021917,2]
[370107693,1751887841500,-460.0,0.00021917,2]
[370107694,1751887841510,-460.0,0.00021917,2]
[370107695,1751887841521,-500.0,0.00021918,2]
[370107696,1751887841530,-500.0,0.00021918,2]
[370107697,1751887841539,-500.0,0.00021918,2]
[370107698,1751887841548,-213.42189902,0.00021918,2]
[370107699,1751887841557,-500.0,0.00021918,2]
[370107700,1751887841566,-151.0,0.00021927,3]
[370107701,1751887841575,-151.0,0.00021927,3]
[370107702,1751887841585,-179.511555,0.00021941,2]
[370107703,1751887841595,-500.0,0.00021973,2]
[370107704,1751887841604,-151.0,0.00021973,2]
[370107705,1751887841613,-151.0,0.00021973,2]